Cogmind - Beta 13 *** ADVENTURER MODE // 2024.03.26 @ 22:42:09 Player: Lucyna Result: Destroyed by W4-03W(R) with Subdweller Laser Performance ------------- Evolutions (0) 0 Regions Visited (3) 600 Robots Destroyed (14) 70 Value Destroyed (195) 195 Prototype IDs (2) 40 Alien Tech Used (0) 0 Bonus (0) 0 TOTAL SCORE: 905 Bonus ------- None Cogmind --------- Core Integrity 0/250 Matter 300/300 Energy 100/100 System Corruption 0% Temperature Warm (101) Movement Core (700) Ox13 Location -10/Subcaves Parts ------- > --- POWER (1) -------- (None) > --- PROPULSION (2) --- (None) > --- UTILITY (2) ------ High-capacity Storage Unit > --- WEAPON (2) ------- (None) > --- INVENTORY (20) --- Light Ion Engine Aluminum Leg Aluminum Leg Wheel Wheel Wheel Armored Wheel Armored Wheel Flight Unit Medium Battery (150) Signal Interpreter Signal Interpreter Scrap Shield Particle Gun Peak State ------------ > --- POWER ------------ Light Ion Engine > --- PROPULSION ------- Armored Wheel Armored Wheel > --- UTILITY ---------- High-capacity Storage Unit Hardened Light Armor Plating > --- WEAPON ----------- Assault Rifle Light Assault Rifle > --- INVENTORY -------- Light Ion Engine Light Ion Engine Aluminum Leg Wheel Wheel Hover Unit Medium Battery Signal Interpreter Signal Interpreter Mining Laser [Rating: 11] Favorites ----------- Power Light Ion Engine Engine Light Ion Engine Propulsion Armored Wheel Leg Aluminum Leg Wheel Armored Wheel Hover Unit Hover Unit Flight Unit Flight Unit Utility Hardened Light Armor Plating Storage High-capacity Storage Unit Protection Hardened Light Armor Plating Weapon Light Assault Rifle Energy Gun Particle Gun Ballistic Gun Light Assault Rifle Special Weapon Mining Laser Build | -11 -10 -10 -10 ------- Run | Yrd Mat Min Sub Slots Evolved . | . . . . Power . | . . . . Propulsion . | . . . . Utility . | . . . . Weapon . | . . . . Parts Attached 24 | 6 6 8 4 Power 2 | 1 . 1 . Engine 2 | 1 . 1 . Core . | . . . . Reactor . | . . . . Propulsion 11 | 2 4 4 1 Treads . | . . . . Leg 2 | 1 . 1 . Wheel 6 | 1 3 2 . Hover 2 | . 1 . 1 Flight 1 | . . 1 . Utility 4 | . 2 . 2 Device . | . . . . Storage 1 | . 1 . . Processor . | . . . . Hackware . | . . . . Protection 3 | . 1 . 2 Artifact . | . . . . Weapon 7 | 3 . 3 1 Energy Gun 1 | . . 1 . Energy Cannon . | . . . . Ballistic Gun 5 | 3 . 1 1 Ballistic Cannon . | . . . . Launcher . | . . . . Special Weapon 1 | . . 1 . Impact Weapon . | . . . . Slashing Weapon . | . . . . Piercing Weapon . | . . . . Special Melee Weapon . | . . . . Unidentified Prototypes . | . . . . Parts Lost 6 | . . . 6 Power 1 | . . . 1 Propulsion 2 | . . . 2 Utility 1 | . . . 1 Weapon 2 | . . . 2 Highest Loss Streak 6 | . . . 6 To Critical Strikes . | . . . . Average Slot Usage (%) 98 | . 95 100 96 Engine 13 | . 14 14 13 Leg 4 | . . 4 13 Wheel 16 | . 26 16 . Hover 1 | . . . 13 Flight 5 | . . 7 . Storage 13 | . 10 14 14 Protection 13 | . 13 14 13 Energy Gun 3 | . . 4 6 Ballistic Gun 19 | . 28 19 6 Special Weapon 4 | . . 4 13 Naked Turns . | . . . . Heaviest Build 54 | 6 51 54 54 Greatest Support 24 | 10 24 12 10 Greatest Overweight (x) 15 | . 8 12 15 Average Overweight (x) 4 | . 2 5 5 Largest Inventory Capacity 20 | 5 20 20 20 Average Capacity 18 | 5 16 20 20 Most Carried 16 | 5 10 14 16 Average Carried 10 | 3 6 11 14 Final Capacity 20 | 5 20 20 20 Final Carried 15 | 5 10 13 15 Class Distribution -------------------- 88% | Mutant 11% | Scavenger-Mutant Dominant Class ---------------- Mutant | -10/Materials Mutant | -10/Mines Scavenger-Mutant | -10/Subcaves Resources | -11 -10 -10 -10 ----------- Run | Yrd Mat Min Sub Matter Collected 616 | 264 12 285 55 Remotely . | . . . . Salvage Created 300 | 12 12 276 . Parts 29 | 3 2 24 . Haulers Intercepted . | . . . . Recyclers Shooed . | . . . . Parts Field Recycled . | . . . . Retrieved Matter . | . . . . Parts Self-Destructed 11 | . . . 11 Prevented . | . . . . Kills | -11 -10 -10 -10 ------- Run | Yrd Mat Min Sub Combat Hostiles Destroyed 10 | . . 10 . Guns 10 | . . 10 . Classes Destroyed 6 | 1 1 4 . Builder 1 | . . 1 . Tunneler 1 | 1 . . . Recycler 1 | . . 1 . Watcher 1 | . 1 . . Swarmer 8 | . . 8 . Grunt 2 | . . 2 . Best Kill Streak 4 | 1 1 4 . Combat Bots Only 3 | . . 3 . Max Kills in Single Turn 1 | 1 1 1 . Gunslinging . | . . . . Exploded . | . . . . Melee . | . . . . Uniques/NPCs Destroyed . | . . . . Combat | -11 -10 -10 -10 -------- Run | Yrd Mat Min Sub Hostile Shots Fired 124 | . . 81 43 Missed 29 | . . 21 8 Damage Taken 977 | . . 396 581 Core 263 | . . 53 210 Absorbed by Shields . | . . . . Ignored by Resistances 296 | . . 132 164 Core Remaining (%) 100 | 100 . . . Volleys Fired 54 | 1 12 33 8 Largest 2 | 2 2 2 1 Hottest 65 | 40 40 65 65 Shots Fired 99 | 2 24 65 8 Gun 99 | 2 24 65 8 Cannon . | . . . . Launcher . | . . . . Special . | . . . . Kinetic 97 | 2 24 64 7 Thermal 2 | . . 1 1 Explosive . | . . . . Electromagnetic . | . . . . Robot Hit Streak 16 | 1 3 13 16 Robot Miss Streak 6 | . 3 6 . Penetration Max . | . . . . Secondary Targets 3 | . . 3 . Max Gunslinging Chain 1 | . . 1 . Shots Hit Robots 54 | 1 6 41 6 Core Hits 22 | 1 2 17 2 Critical Kills 1 | . . 1 . Critical Parts Destroyed . | . . . . Critical Strikes 1 | . . 1 . Destroy 1 | . . 1 . Melee Attacks . | . . . . Impact . | . . . . Slashing . | . . . . Piercing . | . . . . Sneak Attacks . | . . . . Combat Hostiles . | . . . . Follow-up Attacks . | . . . . Damage Inflicted 585 | 13 69 451 52 Guns 583 | 13 69 449 52 Cannons . | . . . . Explosions . | . . . . Melee . | . . . . Ramming 2 | . . 2 . Kinetic 565 | 13 69 431 52 Thermal 18 | . . 18 . Explosive . | . . . . Electromagnetic . | . . . . Impact . | . . . . Slashing . | . . . . Piercing . | . . . . Highest Corruption . | . . . . Average Corruption . | . . . . Corruption Purged . | . . . . Corruption Blocked . | . . . . Overload Shots . | . . . . Overflow Damage . | . . . . Projectiles . | . . . . Explosions . | . . . . Melee . | . . . . Knockbacks . | . . . . Impact . | . . . . Kinetic . | . . . . Secondary . | . . . . Self-Inflicted Damage . | . . . . Shots . | . . . . Rammed 2 | . . 2 . Targets Rammed 2 | . . 2 . Kicked . | . . . . Crushed . | . . . . Highest Temperature 170 | . 20 87 170 Average Temperature 21 | . 8 21 132 Received Heat Transfer 530 | . . 126 404 Siege Activations . | . . . . Robots Corrupted . | . . . . Combat Hostiles . | . . . . Parts Fried . | . . . . Impact Corruptions . | . . . . Robots Melted . | . . . . Combat Hostiles . | . . . . Parts Melted . | . . . . Heat Transferred 37 | . . 37 . Parts Sabotaged . | . . . . Parts Stolen . | . . . . Parts Stripped . | . . . . Power Chain Reactions . | . . . . Alert | -11 -10 -10 -10 ------- Run | Yrd Mat Min Sub Peak Influence 136 | 5 31 136 . Initial 2 | . 2 1 . Average 29 | 2 12 35 . Maximum Alert Level . | . . . . Low Security (%) 100 | 100 100 100 . Level 1 . | . . . . Level 2 . | . . . . Level 3 . | . . . . Level 4 . | . . . . Level 5 . | . . . . High Security . | . . . . Max Security . | . . . . Squads Dispatched . | . . . . Investigation . | . . . . Extermination . | . . . . Reinforcement . | . . . . Assault . | . . . . Garrison . | . . . . Intercept . | . . . . Searches Triggered . | . . . . Construction Impeded . | . . . . Haulers Reinforced . | . . . . Active Scanning Responses . | . . . . Cargo Convoy Interrupts . | . . . . Stealth | -11 -10 -10 -10 --------- Run | Yrd Mat Min Sub Distress Signals . | . . . . Communications Jammed . | . . . . Distress Signals . | . . . . Times Spotted 19 | . 2 10 7 Peak Tracking Total 6 | . 1 3 6 Tactical Retreats . | . . . . Traps | -11 -10 -10 -10 ------- Run | Yrd Mat Min Sub Traps Triggered 2 | . 2 . . Indirectly . | . . . . Trap Hack Attempts . | . . . . Triggered . | . . . . Disarmed . | . . . . Reprogrammed . | . . . . Reused . | . . . . Traps Extracted . | . . . . Installed . | . . . . Triggered . | . . . . Machines | -11 -10 -10 -10 ---------- Run | Yrd Mat Min Sub Machines Disabled . | . . . . Max in Single Turn . | . . . . Machines Repaired . | . . . . Machines Dismantled . | . . . . Machines Sabotaged . | . . . . Overloaded Fab Kills . | . . . . Hacking | -11 -10 -10 -10 --------- Run | Yrd Mat Min Sub Machines Accessed 5 | . 4 1 . Terminals 5 | . 4 1 . Fabricators . | . . . . Repair Stations . | . . . . Recycling Units . | . . . . Scanalyzers . | . . . . Garrison Access . | . . . . Total Hacks 21 | . 19 2 . Successful 11 | . 11 . . Failed 10 | . 8 2 . Catastrophic 3 | . 2 1 . Database Lockouts . | . . . . Manual 3 | . . 3 . Terminals 21 | . 19 2 . Fabricators . | . . . . Repair Stations . | . . . . Recycling Units . | . . . . Scanalyzers . | . . . . Garrison Access . | . . . . Terminal Hacks 11 | . 11 . . Record 6 | . 6 . . Robot Analysis 1 | . 1 . . Prototype ID Bank 1 | . 1 . . Alert Level 1 | . 1 . . Transport Status 1 | . 1 . . Hauler Manifests 1 | . 1 . . Fabricator Hacks . | . . . . Repair Station Hacks . | . . . . Recycling Unit Hacks . | . . . . Scanalyzer . | . . . . Garrison Access Hacks . | . . . . Unauthorized Hacks . | . . . . Terminals . | . . . . Fabricators . | . . . . Repair Stations . | . . . . Recycling Units . | . . . . Scanalyzers . | . . . . Garrison Access . | . . . . Data Cores Recovered . | . . . . Used . | . . . . Hacking Detections 4 | . 3 1 . Full Trace Events 4 | . 3 1 . Feedback Events . | . . . . Feedback Blocked . | . . . . Robot Schematics Acquired . | . . . . Robots Built . | . . . . Authchips . | . . . . Time . | . . . . Total Robot Build Rating . | . . . . Part Schematics Acquired . | . . . . Parts Built . | . . . . Authchips . | . . . . Time . | . . . . Total Part Build Rating . | . . . . Parts Repaired . | . . . . Time . | . . . . Parts Recycled . | . . . . Recycled Matter . | . . . . Retrieved Matter . | . . . . Retrieved Components . | . . . . Parts Scanalyzed . | . . . . Part Schematics Acquired . | . . . . Parts Damaged . | . . . . Bothacking | -11 -10 -10 -10 ------------ Run | Yrd Mat Min Sub Used RIF Installer . | . . . . Robots Hacked . | . . . . Non-combat . | . . . . Combat . | . . . . Robot Hacks Applied . | . . . . Relay Couplers Released . | . . . . Fabnet Peak Effective % . | . . . . Robots Rewired . | . . . . Allies Hacked . | . . . . Hacks Repelled . | . . . . Allies | -11 -10 -10 -10 -------- Run | Yrd Mat Min Sub Total Allies . | . . . . Largest Group . | . . . . Highest-Rated Group . | . . . . Highest-Rated Ally . | . . . . Total Orders . | . . . . Ally Attacks . | . . . . Total Damage . | . . . . Kills . | . . . . Allies Corrupted . | . . . . Allies Melted . | . . . . Intel | -11 -10 -10 -10 ------- Run | Yrd Mat Min Sub Robot Analysis Total 1 | . 1 . . Derelict Logs Recovered 1 | . . 1 . Drone Launches . | . . . . Drone Recoveries . | . . . . Exploration | -11 -10 -10 -10 ------------- Run | Yrd Mat Min Sub Turns Passed 3200 | 88 565 2142 405 Spaces Moved 1273 | 98 411 682 82 Core 42 | 39 . . 3 Treads . | . . . . Legs 83 | 6 . . 77 Wheels 1029 | 53 405 569 2 Hover 6 | . 6 . . Flight 113 | . . 113 . Fastest Speed 50 | 50 80 150 155 Average Speed 234 | 70 125 294 472 Slowest Speed 1005 | 120 545 1005 800 Overloaded Moves . | . . . . Propulsion Burnouts . | . . . . Robots Hopped . | . . . . Cave-ins Triggered . | . . . . Exploration Rate (%) 28 | 5 38 62 7 Regions Visited 3 Branch Regions 2 Pre-discovered Areas . | . . . . Known Exits Taken . | . . . . Unknown Exits Taken 3 | 1 1 1 . Scrap Searched . | . . . . Spaces Dug . | . . . . Terrain Destroyed . | . . . . Melee . | . . . . Projectile . | . . . . AOE . | . . . . Terrain Rammed . | . . . . Walls Destroyed . | . . . . Machines Disabled . | . . . . Actions | -11 -10 -10 -10 --------- Run | Yrd Mat Min Sub Total 1398 | 114 438 747 99 Wait 4 | . . 4 . Move 1270 | 97 410 681 82 Hop . | . . . . Pick Up 27 | 10 6 10 1 Fast Attach 3 | . 3 . . Attach 14 | 5 1 4 4 Detach 7 | . 1 2 4 Swap 7 | 1 2 4 . Drop 10 | . 3 7 . Fire 54 | 1 12 33 8 Melee . | . . . . Ram 2 | . . 2 . Kick . | . . . . Crush . | . . . . Escape Stasis . | . . . . Rewire . | . . . . Trap . | . . . . Miscellaneous . | . . . . Route ------- -11/Scrapyard -10/Materials (discovered 2 exits: [*Mat] / *Min) -10/Mines (discovered 2 exits: [*Mat] / [*Sub]) -10/Subcaves (discovered 1 exit: [*Mat]) History --------- Turn | Location | Event 3 | -11/Scrapyard | Discovered new exit (range 16) 89 | -11/Scrapyard | Entered Materials 301 | -10/Materials | Build established: Mutant 518 | -10/Materials | Discovered new exit (range 9) 578 | -10/Materials | Discovered new exit (range 10) 654 | -10/Materials | Entered Mines 2097 | -10/Mines | Discovered new exit (range 10) 2363 | -10/Mines | Discovered new exit (range 6) 2571 | -10/Mines | Learned Materials non-interactive machine intel 2796 | -10/Mines | Entered Subcaves 2796 | -10/Subcaves | Discovered new exit (range 13) 3005 | -10/Subcaves | A swath of the cavern ceiling suddenly collapsed 3107 | -10/Subcaves | Build established: Scavenger-Mutant 3153 | -10/Subcaves | Ambushed by swarm of Subdwellers 3197 | -10/Subcaves | Core integrity fell below 50% 3199 | -10/Subcaves | Core integrity fell below 20% 3201 | -10/Subcaves | Destroyed by W4-03W(R) with Subdweller Laser Last Messages --------------- Machinery. 03166_ Subatomizers dissect the Imp. Heat Sink. 03180_ Hrd. Light Armor Plating destroyed. 03182_ Aluminum Leg destroyed. 03183_ HV Slug penetrates 49-MBI(R). 03183_ 49-MBI(R) suffers critical hit (Destroy). 03183_ W4-03W(R) knocked back. 03184_ Lgt. Assault Rifle destroyed. 03186_ HV Slug penetrates 49-MBI(R). 03186_ 49-MBI(R) knocked back. 03186_ Mining Laser destroyed. 03189_ HV Slug penetrates Wall. 03189_ HV Slug penetrates Earth. 03190_ 49-MBI(R) destroyed. 03192_ SG-5DD(h) destroyed. 03194_ Ion Engine destroyed. 03194_ W4-03W(R) affixes Scrap Shield Fragment to Scrap Shield. 03198_ Hover Unit destroyed. 03198_ Critical hit (Meltdown: +200). Map ----- +----------------------------------------------------+ | ##???????????????????????????????????????????????? | | ##??????????????????????????????????????????????? | | #??????????????????????????????????????????????? | | ##??????????????????????????????????????????????? | | #???????????????????????????????????????????????? | | ##???????????????????????????????????????????????? | | ##???????????????????????????????????????????????? | | #???????????????????????????????????????????????? | | #???????????????????????????????????????????????? | | ##??????????????????????????????????????????????? | | ##???#####?????????????????????????????????????? | | #??? ##????????????????????????????????????? | | ##?? #????????????????????????????????????? | | ### #????????????????????????????????????? | | #?????????????????????????????????????? | | ##?????????????????????????????????????? | | ##??????????????????????????????????????? | | # #???????????????????????????????????????? | | ## #??????###???????###????????????????????? | | ?## ##??????#[########;;#????????????????????? | | ??## ###??#####!%[## ##???????????????????? | | ???# # #### # # %!%RR& ????????????????????? | | #### ""R%R #????????? ???????????? | | # ## ###?#!=] #####??? #??????????? | | ## # #### ##????#%[ ## #??????????? | | ## ###### # ######!@% #????????????? | | # ##?# * ##????????????? | | # #??# #?????????????? | | ##?# ## ##### #?????????????? | | ##" ?# #??????#?????????????? | | ########" #?## ;????????????????????? | | #??# ## # ???# ##???????????????????? | | ??? #####???## ## ##????????????????????? | | ??? * ????????##### ###?????????????????????? | | ??? =%! ????????????#####???????????????????????? | | ?? | ????????????????????????????????????????? | | ?? %?????????????????????????????????????????? | | ?? ?????????????????????????????????????????? | | ?? ?????????????????????????????????????????? | | ???? ?????????????????????????????????????????? | | ?????????????????????????????????????????????????? | | ?????????????????????????????????????????????????? | | ?????????????????????????????????????????????????? | | ?????????????????????????????????????????????????? | | ?????????????????????????????????????????????????? | | ?????????????????????????????????????????????????? | | ?????????????????????????????????????????????????? | | ?????????????????????????????????????????????????? | | ?????????????????????????????????????????????????? | | ?????????????????????????????????????????????????? | +----------------------------------------------------+ Best States ------------- Heat Dissipation 25 Energy Generation 10 Energy Capacity 250 Matter Stores 300 Matter Capacity 300 Sight Range 16 Terrain Scan Density 10 Armor Coverage 150 Resistance: KI 20 Resistance: TH 20 Resistance: EX 20 Resistance: EM 20 Resistance: I 20 Resistance: S 20 Resistance: P 20 Evasion (%) 55 Offensive Hacking 10 Item Schematics ----------------- None Robot Schematics ------------------ None Fabricated ------------ Nothing Alien Tech Used ----------------- None Achievements -------------- Storm Trooper Challenges ------------ None Game ------ Seed ThiefAlphaBooster Manual? 0 Play Time 00:24:19 Cumulative 5.2 hours Start 2024.03.26 @ 22:19:32 End 2024.03.26 @ 22:42:09 Sessions 1 Manual Loads 0 Difficulty Adventurer Special Mode None Game No. 4 Rogue 0 Adventurer 4 Explorer 0 Win Type - Total 0 Types 0/0/0/0/0/0/0/0/0 Lore% 1 Gallery% 4 Achievement% 4 Wizard Run 0 Options --------- Layout 1 ASCII 0 Keyboard 0 Movement Mouse Keybinds 0 Fullscreen 2 Font 24/Smallcaps Map View 50x35 Zoom Use 0% Tactical HUD 1 Map Filters NONE Filters NONE Steam 1 RUN: 8d1fc301-82cf-42b3-b3e1-c08466b0dc62